fUSD/lending_fUSD_20260219
["ID","MTS","AMOUNT","RATE_DAILY","PERIOD"]
[405960518,1771459892917,-500.0,0.00043835,120]
[405960519,1771459892942,-500.0,0.00043835,120]
[405960520,1771459892967,-500.0,0.00043835,120]
[405960521,1771459892992,-500.0,0.00043835,120]
[405960522,1771459893018,-500.0,0.00043835,120]
[405960523,1771459893047,-500.0,0.00043835,120]
[405960524,1771459893073,-564.76040838,0.00043835,120]
[405960525,1771459893099,-500.0,0.00043835,120]
[405960526,1771459893127,-500.0,0.00043835,120]
[405960527,1771459893153,-500.0,0.00043835,120]
[405960528,1771459893178,-500.0,0.00043835,120]
[405960529,1771459893204,-500.0,0.00043835,120]
[405960530,1771459893231,-500.0,0.00043835,120]
[405960531,1771459893256,-500.0,0.00043835,120]
[405960532,1771459893282,-500.0,0.00043835,120]
[405960533,1771459893308,-500.0,0.00043835,120]
[405960534,1771459893334,-500.0,0.00043835,120]
[405960535,1771459893367,-500.0,0.00043835,120]
[405960536,1771459893394,-500.0,0.00043835,120]
[405960537,1771459893420,-500.0,0.00043835,120]
[405960538,1771459893447,-500.0,0.00043835,120]
[405960539,1771459893473,-500.0,0.00043835,120]
[405960540,1771459893499,-500.0,0.00043835,120]
[405960541,1771459893525,-500.0,0.00043835,120]
[405960542,1771459893550,-500.0,0.00043835,120]
[405960543,1771459893577,-500.0,0.00043835,120]
[405960544,1771459893603,-429.20543187,0.00043835,120]
[405960545,1771459893629,-6762.78,0.00043835,120]
[405960546,1771459893823,-6762.78,0.00043835,120]
[405960547,1771459893851,-6762.78,0.00043835,120]
[405960548,1771459893877,-6762.78,0.00043835,120]
[405960549,1771459893904,-6762.78,0.00043835,120]
[405960550,1771459893931,-6762.78,0.00043835,120]
[405960551,1771459893957,-6762.78,0.00043835,120]
[405960552,1771459893984,-6762.78,0.00043835,120]
[405960553,1771459894009,-6762.78,0.00043835,120]
[405960554,1771459894038,-6762.78,0.00043835,120]
[405960555,1771459894063,-6762.78,0.00043835,120]
[405960556,1771459894089,-6762.78,0.00043835,120]
[405960557,1771459894115,-6762.78,0.00043835,120]
[405960558,1771459894141,-6762.78,0.00043835,120]
[405960559,1771459894168,-6762.78,0.00043835,120]
[405960560,1771459894195,-6762.78,0.00043835,120]
[405960561,1771459894222,-6762.78,0.00043835,120]
[405960562,1771459894247,-6762.78,0.00043835,120]
[405960563,1771459894272,-6762.78,0.00043835,120]
[405960564,1771459894297,-6762.78,0.00043835,120]
[405960565,1771459894324,-6762.78,0.00043835,120]
[405960566,1771459894349,-6762.78,0.00043835,120]
[405960567,1771459894376,-6762.78,0.00043835,120]
[405960568,1771459894402,-6762.96732229,0.00043835,120]
[405960569,1771459894428,-500.0,0.00043835,120]
[405960570,1771459894454,-208.16339158,0.00043835,120]
[405960571,1771459894481,-500.0,0.00043835,120]
[405960572,1771459894507,-500.0,0.00043835,120]
[405960573,1771459894533,-500.0,0.00043835,120]
[405960574,1771459894560,-500.0,0.00043835,120]
[405960575,1771459894587,-500.0,0.00043835,120]
[405960576,1771459894613,-500.0,0.00043835,120]
[405960577,1771459894640,-500.0,0.00043835,120]
[405960578,1771459894668,-500.0,0.00043835,120]
[405960579,1771459894694,-500.0,0.00043835,120]
[405960580,1771459894721,-500.0,0.00043835,120]
[405960581,1771459894749,-500.0,0.00043835,120]
[405960582,1771459894777,-500.0,0.00043835,120]
[405960583,1771459894803,-500.0,0.00043835,120]
[405960584,1771459894828,-500.0,0.00043835,120]
[405960585,1771459894855,-500.0,0.00043835,120]
[405960586,1771459894881,-313.25048959,0.00043835,120]
[405960587,1771459894908,-465.48951041,0.00043835,120]
[405960588,1771459894934,-202.02755308,0.00043835,120]
[405960589,1771459894959,-541.9,0.00043835,120]
[405960590,1771459894986,-604.46,0.00043835,120]
[405960591,1771459895012,-500.0,0.00043835,120]
[405960592,1771459895040,-500.0,0.00043835,120]
[405960593,1771459895067,-500.0,0.00043835,120]
[405960594,1771459895095,-500.0,0.00043835,120]
[405960595,1771459895122,-500.0,0.00043835,120]
[405960596,1771459895148,-371.40606786,0.00043835,120]
[405960597,1771459895175,-500.0,0.00043835,120]
[405960598,1771459895200,-500.0,0.00043835,120]
[405960599,1771459895227,-500.0,0.00043835,120]
[405960600,1771459895253,-500.0,0.00043835,120]
[405960601,1771459895279,-500.0,0.00043835,120]
[405960602,1771459895304,-500.0,0.00043835,120]
[405960603,1771459895331,-500.0,0.00043835,120]
[405960604,1771459895358,-500.0,0.00043835,120]
[405960605,1771459895384,-500.0,0.00043835,120]
[405960606,1771459895410,-387.09146572,0.00043835,120]
[405960607,1771459895436,-500.0,0.00043835,120]
[405960608,1771459895463,-500.0,0.00043835,120]
[405960609,1771459895490,-500.0,0.00043835,120]
[405960610,1771459895518,-500.0,0.00043835,120]
[405960611,1771459895545,-500.0,0.00043835,120]
[405960612,1771459895572,-516.8073318,0.00043835,120]
[405960613,1771459895599,-500.0,0.00043835,120]
[405960614,1771459895626,-506.52731403,0.00043835,120]
[405960615,1771459895652,-500.0,0.00043835,120]
[405960616,1771459895678,-500.0,0.00043835,120]
[405960617,1771459895704,-500.0,0.00043835,120]
[405960618,1771459895730,-500.0,0.00043835,120]
[405960619,1771459895757,-500.0,0.00043835,120]
[405960620,1771459895783,-500.0,0.00043835,120]
[405960621,1771459895808,-500.0,0.00043835,120]
[405960622,1771459895833,-500.0,0.00043835,120]
[405960623,1771459895858,-500.0,0.00043835,120]
[405960624,1771459895884,-500.0,0.00043835,120]
[405960625,1771459895909,-500.0,0.00043835,120]
[405960626,1771459895935,-500.0,0.00043835,120]
[405960627,1771459895961,-463.70503425,0.00043835,120]
[405960628,1771459895987,-500.0,0.00043835,120]
[405960629,1771459896012,-500.0,0.00043835,120]
[405960630,1771459896039,-500.0,0.00043835,120]
[405960631,1771459896064,-500.0,0.00043835,120]
[405960632,1771459896090,-500.0,0.00043835,120]
[405960633,1771459896307,-225.00440734,0.00043835,120]
[405960634,1771459896339,-500.0,0.00043835,120]
[405960635,1771459896366,-500.0,0.00043835,120]
[405960636,1771459896394,-500.0,0.00043835,120]
[405960637,1771459896422,-500.0,0.00043835,120]
[405960638,1771459896451,-500.0,0.00043835,120]
[405960639,1771459896477,-500.0,0.00043835,120]
[405960640,1771459896504,-500.0,0.00043835,120]
[405960641,1771459896530,-500.0,0.00043835,120]
[405960642,1771459896561,-634.7588085,0.00043835,120]
[405960643,1771459896588,-500.0,0.00043835,120]
[405960644,1771459896615,-500.0,0.00043835,120]
[405960645,1771459896642,-500.0,0.00043835,120]
[405960646,1771459896670,-500.0,0.00043835,120]
[405960647,1771459896699,-500.0,0.00043835,120]
[405960648,1771459896728,-500.0,0.00043835,120]
[405960649,1771459896756,-500.0,0.00043835,120]
[405960650,1771459896782,-500.0,0.00043835,120]
[405960651,1771459896815,-500.0,0.00043835,120]
[405960652,1771459896842,-500.0,0.00043835,120]
[405960653,1771459896867,-500.0,0.00043835,120]
[405960654,1771459896894,-500.0,0.00043835,120]
[405960655,1771459896922,-500.0,0.00043835,120]
[405960656,1771459896948,-251.40456727,0.00043835,120]
[405960657,1771459896974,-500.0,0.00043835,120]
[405960658,1771459897000,-500.0,0.00043835,120]
[405960659,1771459897026,-500.0,0.00043835,120]
[405960660,1771459897061,-500.0,0.00043835,120]
[405960661,1771459897088,-544.84547176,0.00043835,120]
[405960662,1771459897117,-500.0,0.00043835,120]
[405960663,1771459897143,-500.0,0.00043835,120]
[405960664,1771459897169,-500.0,0.00043835,120]
[405960665,1771459897196,-468.38639153,0.00043835,120]
[405960666,1771459897223,-500.0,0.00043835,120]
[405960667,1771459897250,-500.0,0.00043835,120]
[405960668,1771459897277,-500.0,0.00043835,120]
[405960669,1771459897307,-500.0,0.00043835,120]
[405960670,1771459897334,-541.17966274,0.00043835,120]
[405960671,1771459897362,-500.0,0.00043835,120]
[405960672,1771459897388,-500.0,0.00043835,120]
[405960673,1771459897415,-500.0,0.00043835,120]
[405960674,1771459897442,-500.0,0.00043835,120]
[405960675,1771459897469,-500.0,0.00043835,120]
[405960676,1771459897496,-500.0,0.00043835,120]
[405960677,1771459897524,-500.0,0.00043835,120]
[405960678,1771459897551,-500.0,0.00043835,120]
[405960679,1771459897579,-500.0,0.00043835,120]
[405960680,1771459897606,-500.0,0.00043835,120]
[405960681,1771459897633,-500.0,0.00043835,120]
[405960682,1771459897659,-500.0,0.00043835,120]
[405960683,1771459897686,-448.9046072,0.00043835,120]
[405960684,1771459897714,-500.0,0.00043835,120]
[405960685,1771459897740,-500.0,0.00043835,120]
[405960686,1771459897766,-500.0,0.00043835,120]
[405960687,1771459897793,-403.52365273,0.00043835,120]
[405960688,1771459897818,-524.81242284,0.00043835,120]
[405960689,1771459897843,-500.0,0.00043835,120]
[405960690,1771459897870,-500.0,0.00043835,120]
[405960691,1771459897895,-500.0,0.00043835,120]
[405960692,1771459897920,-500.0,0.00043835,120]
[405960693,1771459897946,-500.0,0.00043835,120]
[405960694,1771459897971,-500.0,0.00043835,120]
[405960695,1771459897997,-500.0,0.00043835,120]
[405960696,1771459898023,-500.0,0.00043835,120]
[405960697,1771459898052,-500.0,0.00043835,120]
[405960698,1771459898077,-500.0,0.00043835,120]
[405960699,1771459898103,-500.0,0.00043835,120]
[405960700,1771459898130,-500.0,0.00043835,120]
[405960701,1771459898156,-500.0,0.00043835,120]
[405960702,1771459898181,-500.34350391,0.00043835,120]
[405960703,1771459898207,-609.32,0.00043835,120]
[405960704,1771459898232,-609.32,0.00043835,120]
[405960705,1771459898258,-609.32,0.00043835,120]
[405960706,1771459898283,-609.32,0.00043835,120]
[405960707,1771459898311,-609.32,0.00043835,120]
[405960708,1771459898337,-609.32,0.00043835,120]
[405960709,1771459898363,-609.32,0.00043835,120]
[405960710,1771459898389,-609.32,0.00043835,120]
[405960711,1771459898415,-609.32,0.00043835,120]
[405960712,1771459898441,-609.32,0.00043835,120]
[405960713,1771459898467,-609.32,0.00043835,120]
[405960714,1771459898494,-609.32,0.00043835,120]
[405960715,1771459898521,-609.32,0.00043835,120]
[405960716,1771459898549,-609.32,0.00043835,120]
[405960717,1771459898577,-609.32,0.00043835,120]
[405960718,1771459898605,-609.32,0.00043835,120]
[405960719,1771459898631,-609.32,0.00043835,120]
[405960720,1771459898844,-609.32,0.00043835,120]
[405960721,1771459898872,-609.32,0.00043835,120]
[405960722,1771459898899,-609.32,0.00043835,120]
[405960723,1771459898925,-609.32,0.00043835,120]
[405960724,1771459898951,-609.32,0.00043835,120]
[405960725,1771459898977,-609.32,0.00043835,120]
[405960726,1771459899003,-609.32282696,0.00043835,120]
[405960727,1771459899029,-500.0,0.00043835,120]
[405960728,1771459899060,-500.0,0.00043835,120]
[405960729,1771459899085,-500.0,0.00043835,120]
[405960730,1771459899111,-500.0,0.00043835,120]
[405960731,1771459899136,-500.0,0.00043835,120]
[405960732,1771459899163,-500.0,0.00043835,120]
[405960733,1771459899189,-500.0,0.00043835,120]
[405960734,1771459899215,-500.0,0.00043835,120]
[405960735,1771459899240,-500.0,0.00043835,120]
[405960736,1771459899267,-500.0,0.00043835,120]
[405960737,1771459899293,-556.10818285,0.00043835,120]
[405960738,1771459899318,-500.0,0.00043835,120]
[405960739,1771459899344,-500.0,0.00043835,120]
[405960740,1771459899371,-500.0,0.00043835,120]
[405960741,1771459899398,-500.0,0.00043835,120]
[405960742,1771459899424,-500.0,0.00043835,120]
[405960743,1771459899450,-500.0,0.00043835,120]
[405960744,1771459899477,-500.0,0.00043835,120]
[405960745,1771459899503,-500.0,0.00043835,120]
[405960746,1771459899529,-500.0,0.00043835,120]
[405960747,1771459899555,-407.88350756,0.00043835,120]
[405960748,1771459899581,-500.0,0.00043835,120]
[405960749,1771459899607,-500.0,0.00043835,120]
[405960750,1771459899633,-500.0,0.00043835,120]
[405960751,1771459899659,-500.0,0.00043835,120]
[405960752,1771459899685,-500.0,0.00043835,120]
[405960753,1771459899710,-500.0,0.00043835,120]
[405960754,1771459899735,-500.0,0.00043835,120]
[405960755,1771459899761,-620.03564614,0.00043835,120]
[405960756,1771459899787,-500.0,0.00043835,120]
[405960757,1771459899812,-500.0,0.00043835,120]
[405960758,1771459899838,-500.0,0.00043835,120]
[405960759,1771459899864,-500.0,0.00043835,120]
[405960760,1771459899891,-500.0,0.00043835,120]
[405960761,1771459899916,-500.0,0.00043835,120]
[405960762,1771459899942,-500.0,0.00043835,120]
[405960763,1771459899968,-500.0,0.00043835,120]
[405960764,1771459899994,-455.38786232,0.00043835,120]
[405960765,1771459900020,-500.0,0.00043835,120]
[405960766,1771459900052,-300.42,0.00043835,120]
[405960767,1771459900079,-544.44874968,0.00043835,120]
[405960768,1771459900107,-553.61526902,0.00043835,120]
[405960769,1771459900134,-524.44293595,0.00043835,120]
[405960770,1771459900159,-515.4633247,0.00043835,120]
[405960771,1771459900190,-571.17981068,0.00043835,120]
[405960772,1771459900216,-509.80146965,0.00043835,120]
[405960773,1771459900243,-514.18747701,0.00043835,120]
[405960774,1771459900268,-553.07339638,0.00043835,120]
[405960775,1771459900295,-582.05988644,0.00043835,120]
[405960776,1771459900322,-539.5984415,0.00043835,120]
[405960777,1771459900349,-620.98716894,0.00043835,30]
[405960778,1771459900376,-534.76337443,0.00043835,120]
[405960779,1771459900402,-528.73,0.00043835,120]
[405960780,1771459900429,-500.0,0.00043835,120]
[405960781,1771459900456,-500.0,0.00043835,120]
[405960782,1771459900483,-500.0,0.00043835,120]
[405960783,1771459900510,-508.27751909,0.00043835,120]
[405960784,1771459900537,-580.04963654,0.00043835,120]
[405960785,1771459900564,-202.9,0.00043835,120]
[405960786,1771459900591,-542.7802711,0.00043835,120]
[405960787,1771459900616,-513.34714524,0.00043835,120]
[405960788,1771459900642,-514.35469771,0.00043835,120]
[405960789,1771459900668,-514.41377472,0.00043835,120]
[405960790,1771459900694,-515.79926288,0.00043835,120]
[405960791,1771459900719,-500.0,0.00043835,120]
[405960792,1771459900746,-233.41646798,0.00043835,120]
[405960793,1771459900771,-556.29470778,0.00043835,120]
[405960794,1771459900796,-560.13731878,0.00043835,120]
[405960795,1771459900822,-532.70907827,0.00043835,120]
[405960796,1771459900848,-516.24629398,0.00043835,120]
[405960797,1771459900874,-500.0,0.00043835,120]
[405960798,1771459900900,-574.59900728,0.00043835,120]
[405960799,1771459900925,-506.40942187,0.00043835,120]
[405960800,1771459900951,-614.28709538,0.00043835,120]
[405960801,1771459900977,-592.20259865,0.00043835,120]
[405960802,1771459901003,-417.61577895,0.00043835,120]
[405960803,1771459901030,-599.56783596,0.00043835,120]
[405960804,1771459901059,-500.0,0.00043835,120]
[405960805,1771459901085,-224.6661693,0.00043835,120]
[405960806,1771459901110,-510.08778382,0.00043835,120]
[405960807,1771459901284,-555.06016255,0.00043835,120]
[405960808,1771459901313,-512.78786628,0.00043835,120]
[405960809,1771459901340,-500.0,0.00043835,120]
[405960810,1771459901366,-520.16877219,0.00043835,120]
[405960811,1771459901392,-158.92972814,0.00043835,120]
[405960812,1771459901418,-507.59522241,0.00043835,120]
[405960813,1771459901444,-519.13311829,0.00043835,120]
[405960814,1771459901471,-500.0,0.00043835,120]
[405960815,1771459901497,-273.00216129,0.00043835,120]
[405960816,1771459901524,-523.79790248,0.00043835,120]
[405960817,1771459901549,-509.53472897,0.00043835,120]
[405960818,1771459901575,-507.53520882,0.00043835,120]
[405960819,1771459901601,-508.34671196,0.00043835,120]
[405960820,1771459901626,-533.19524401,0.00043835,120]
[405960821,1771459901652,-151.0,0.00043835,60]
[405960822,1771459901679,-579.35994944,0.00043835,120]
[405960823,1771459901705,-511.59359289,0.00043835,120]
[405960824,1771459901731,-535.33453976,0.00043835,120]
[405960825,1771459901756,-522.89119032,0.00043835,120]
[405960826,1771459901782,-543.15280736,0.00043835,120]
[405960827,1771459901808,-500.0,0.00043835,120]
[405960828,1771459901834,-500.0,0.00043835,120]
[405960829,1771459901859,-246.20801604,0.00043835,120]
[405960830,1771459901884,-545.72671097,0.00043835,120]
[405960831,1771459901909,-512.20386025,0.00043835,120]
[405960832,1771459901937,-500.0,0.00043835,120]
[405960833,1771459901965,-306.56353975,0.00043835,120]
[405960834,1771459901992,-500.0,0.00043835,120]
[405960835,1771459902017,-500.0,0.00043835,120]
[405960836,1771459902047,-542.07880434,0.00043835,120]
[405960837,1771459902075,-500.0,0.00043835,120]
[405960838,1771459902100,-500.0,0.00043835,120]
[405960839,1771459902128,-589.98187507,0.00043835,120]
[405960840,1771459902155,-512.45345429,0.00043835,120]
[405960841,1771459902182,-505.89712078,0.00043835,120]
[405960842,1771459902208,-523.75028954,0.00043835,120]
[405960843,1771459902237,-524.77434691,0.00043835,120]
[405960844,1771459902264,-510.68032782,0.00043835,120]
[405960845,1771459902292,-500.0,0.00043835,120]
[405960846,1771459902320,-475.58,0.00043835,120]
[405960847,1771459902352,-500.0,0.00043835,120]
[405960848,1771459902377,-385.67986128,0.00043835,120]
[405960849,1771459902403,-640.93203109,0.00043835,120]
[405960850,1771459902428,-508.39139915,0.00043835,120]
[405960851,1771459902454,-513.01627435,0.00043835,120]
[405960852,1771459902480,-552.68577134,0.00043835,120]
[405960853,1771459902506,-506.78640693,0.00043835,120]
[405960854,1771459902533,-578.71774449,0.00043835,120]
[405960855,1771459902559,-510.86937444,0.00043835,120]
[405960856,1771459902586,-457.16839902,0.00043835,120]
[405960857,1771459902612,-500.0,0.00043835,120]
[405960858,1771459902638,-168.63253099,0.00043835,120]
[405960859,1771459902664,-500.0,0.00043835,120]
[405960860,1771459902694,-500.0,0.00043835,120]
[405960861,1771459902722,-405.89125172,0.00043835,120]
[405960862,1771459902748,-503.95613561,0.00043835,120]
[405960863,1771459902773,-512.25634434,0.00043835,120]
[405960864,1771459902799,-511.45836418,0.00043835,120]
[405960865,1771459902825,-500.0,0.00043835,120]
[405960866,1771459902850,-646.13745975,0.00043835,120]
[405960867,1771459902875,-529.63029072,0.00043835,120]
[405960868,1771459902901,-548.21936011,0.00043835,120]
[405960869,1771459902928,-514.59996643,0.00043835,120]
[405960870,1771459902957,-500.0,0.00043835,120]
[405960871,1771459902985,-500.0,0.00043835,120]
[405960872,1771459903012,-408.03,0.00043835,120]
[405960873,1771459903039,-531.37987544,0.00043835,120]
[405960874,1771459903066,-500.0,0.00043835,120]
[405960875,1771459903094,-417.34514103,0.00043835,120]
[405960876,1771459903122,-500.0,0.00043835,120]
[405960877,1771459903151,-158.65168819,0.00043835,120]
[405960878,1771459903179,-500.0,0.00043835,120]
[405960879,1771459903205,-500.0,0.00043835,120]
[405960880,1771459903231,-500.0,0.00043835,120]
[405960881,1771459903260,-500.0,0.00043835,120]
[405960882,1771459903288,-500.0,0.00043835,120]
[405960883,1771459903315,-500.0,0.00043835,120]
[405960884,1771459903341,-519.63011739,0.00043835,120]
[405960885,1771459903369,-500.0,0.00043835,120]
[405960886,1771459903395,-500.0,0.00043835,120]
[405960887,1771459903422,-500.0,0.00043835,120]
[405960888,1771459903452,-500.0,0.00043835,120]
[405960889,1771459903483,-235.89,0.00043835,120]
[405960890,1771459903512,-500.0,0.00043835,120]
[405960891,1771459903539,-458.00033714,0.00043835,120]
[405960892,1771459903566,-599.47221622,0.00043835,120]
[405960893,1771459903594,-500.0,0.00043835,120]
[405960894,1771459903621,-500.0,0.00043835,120]
[405960895,1771459903809,-183.08,0.00043835,120]
[405960896,1771459903838,-500.0,0.00043835,120]
[405960897,1771459903868,-552.56923717,0.00043835,120]
[405960898,1771459903898,-570.91855449,0.00043835,120]
[405960899,1771459903929,-500.0,0.00043835,120]
[405960900,1771459903957,-228.65298711,0.00043835,120]
[405960901,1771459903984,-500.0,0.00043835,120]
[405960902,1771459904011,-500.0,0.00043835,120]
[405960903,1771459904036,-363.5,0.00043835,120]
[405960904,1771459904061,-505.49251921,0.00043835,120]
[405960905,1771459904088,-500.0,0.00043835,120]
[405960906,1771459904113,-457.08,0.00043835,120]
[405960907,1771459904140,-500.0,0.00043835,120]
[405960908,1771459904168,-500.0,0.00043835,120]
[405960909,1771459904197,-584.0953224,0.00043835,120]
[405960910,1771459904226,-280.7,0.00043835,120]
[405960911,1771459904254,-507.67911431,0.00043835,120]
[405960912,1771459904281,-532.64636649,0.00043835,120]
[405960913,1771459904308,-507.53218223,0.00043835,120]
[405960914,1771459904334,-169.08975321,0.00043835,120]
[405960915,1771459904360,-500.0,0.00043835,120]
[405960916,1771459904386,-500.0,0.00043835,120]
[405960917,1771459904412,-369.84343019,0.00043835,120]
[405960918,1771459904437,-500.0,0.00043835,120]
[405960919,1771459904462,-500.0,0.00043835,120]
[405960920,1771459904487,-500.0,0.00043835,120]
[405960921,1771459904512,-500.0,0.00043835,120]
[405960922,1771459904537,-500.0,0.00043835,120]
[405960923,1771459904563,-201.84459371,0.00043835,120]
[405960924,1771459904588,-439.76289689,0.00043835,120]
[405960925,1771459904615,-565.56529511,0.00043835,120]
[405960926,1771459904641,-500.0,0.00043835,120]
[405960927,1771459904669,-553.04449192,0.00043835,120]
[405960928,1771459904695,-500.0,0.00043835,120]
[405960929,1771459904721,-274.23303143,0.00043835,120]
[405960930,1771459904747,-500.0,0.00043835,120]
[405960931,1771459904772,-381.35141177,0.00043835,120]
[405960932,1771459904797,-586.31312672,0.00043835,30]
[405960933,1771459904823,-599.4962122,0.00043835,120]
[405960934,1771459904848,-500.0,0.00043835,120]
[405960935,1771459904873,-511.31570312,0.00043835,120]
[405960936,1771459904898,-626.01984879,0.00043835,120]
[405960937,1771459904924,-500.0,0.00043835,120]
[405960938,1771459904949,-646.16,0.00043835,120]
[405960939,1771459904977,-613.93035822,0.00043835,120]
[405960940,1771459905003,-500.0,0.00043835,120]
[405960941,1771459905028,-466.48541704,0.00043835,120]
[405960942,1771459905059,-500.0,0.00043835,120]
[405960943,1771459905088,-500.0,0.00043835,120]
[405960944,1771459905116,-500.0,0.00043835,120]
[405960945,1771459905142,-500.0,0.00043835,120]
[405960946,1771459905167,-631.02089826,0.00043835,120]
[405960947,1771459905193,-213.05,0.00043835,120]
[405960948,1771459905221,-500.0,0.00043835,120]
[405960949,1771459905248,-500.0,0.00043835,120]
[405960950,1771459905274,-500.0,0.00043835,120]
[405960951,1771459905300,-500.0,0.00043835,120]
[405960952,1771459905327,-500.0,0.00043835,120]
[405960953,1771459905354,-607.39,0.00043835,120]
[405960954,1771459905383,-500.0,0.00043835,120]
[405960955,1771459905411,-328.04,0.00043835,120]
[405960956,1771459905438,-574.11444575,0.00043835,120]
[405960957,1771459905465,-500.0,0.00043835,120]
[405960958,1771459905492,-218.70364866,0.00043835,120]
[405960959,1771459905520,-563.05245108,0.00043835,120]
[405960960,1771459905546,-500.0,0.00043835,120]
[405960961,1771459905576,-649.11468043,0.00043835,120]
[405960962,1771459905603,-501.24385125,0.00043835,120]
[405960963,1771459905631,-512.58250973,0.00043835,120]
[405960964,1771459905658,-541.95952142,0.00043835,120]
[405960965,1771459905687,-510.56989507,0.00043835,120]
[405960966,1771459905715,-639.22138526,0.00043835,120]
[405960967,1771459905740,-542.76279517,0.00043835,120]
[405960968,1771459905765,-504.09254856,0.00043835,120]
[405960969,1771459905792,-500.0,0.00043835,120]
[405960970,1771459905820,-468.35503509,0.00043835,120]
[405960971,1771459905847,-519.46235974,0.00043835,120]
[405960972,1771459905873,-499.41784575,0.00043835,120]
[405960973,1771459905901,-506.98939584,0.00043835,120]
[405960974,1771459905929,-517.53795482,0.00043835,120]
[405960975,1771459905956,-509.71448251,0.00043835,120]
[405960976,1771459905982,-583.58018615,0.00043835,120]
[405960977,1771459906009,-500.0,0.00043835,120]
[405960978,1771459906036,-504.07416975,0.00043835,120]
[405960979,1771459906061,-571.83492695,0.00043835,120]
[405960980,1771459906090,-569.62014734,0.00043835,120]
[405960981,1771459906119,-541.70165858,0.00043835,120]
[405960982,1771459906308,-500.0,0.00043835,120]
[405960983,1771459906339,-500.0,0.00043835,120]
[405960984,1771459906368,-322.51424032,0.00043835,120]
[405960985,1771459906398,-500.0,0.00043835,120]
[405960986,1771459906427,-500.0,0.00043835,120]
[405960987,1771459906453,-275.12791194,0.00043835,120]
[405960988,1771459906481,-547.89731843,0.00043835,120]
[405960989,1771459906511,-509.70670847,0.00043835,120]
[405960990,1771459906539,-510.39115461,0.00043835,120]
[405960991,1771459906566,-500.0,0.00043835,60]
[405960992,1771459906593,-500.0,0.00043835,60]
[405960993,1771459906620,-325.42849455,0.00043835,60]
[405960994,1771459906647,-516.62725603,0.00043835,120]
[405960995,1771459906675,-313.7203448,0.00043835,120]
[405960996,1771459906702,-512.2648403,0.00043835,120]
[405960997,1771459906731,-533.69663365,0.00043835,120]
[405960998,1771459906758,-510.54801452,0.00043835,120]
[405960999,1771459906784,-502.68071296,0.00043835,120]
[405961000,1771459906810,-483.06573704,0.00043835,120]
[405961001,1771459906837,-515.11826177,0.00043835,120]
[405961002,1771459906863,-520.56416906,0.00043835,120]
[405961003,1771459906890,-500.0,0.00043835,120]
[405961004,1771459906917,-500.0,0.00043835,120]
[405961005,1771459906943,-500.0,0.00043835,120]
[405961006,1771459906969,-278.80999999,0.00043835,120]
[405961007,1771459906996,-306.89892291,0.00043835,120]
[405961008,1771459907025,-511.79013352,0.00043835,120]
[405961009,1771459907055,-510.14184613,0.00043835,120]
[405961010,1771459907084,-487.98718931,0.00043835,120]
[405961011,1771459907111,-633.29531245,0.00043835,120]
[405961012,1771459907136,-511.37267739,0.00043835,120]
[405961013,1771459907164,-500.0,0.00043835,120]
[405961014,1771459907190,-376.86102165,0.00043835,120]
[405961015,1771459907218,-220.60580278,0.00043835,120]
[405961016,1771459907246,-504.32117812,0.00043835,120]
[405961017,1771459907272,-491.51122569,0.00043835,120]